fUST/lending_fUST_20241220
["ID","MTS","AMOUNT","RATE_DAILY","PERIOD"]
[346073235,1734693045976,-211.93550011,0.00021917,6]
[346073236,1734693045986,-500.0,0.00021917,6]
[346073237,1734693045995,-500.0,0.00021917,6]
[346073238,1734693046005,-1215.59,0.00021917,6]
[346073239,1734693046015,-1202.07,0.00021917,6]
[346073240,1734693046024,-500.0,0.00021917,6]
[346073241,1734693046034,-500.0,0.00021917,6]
[346073242,1734693046044,-500.0,0.00021917,6]
[346073243,1734693046053,-540.95475685,0.00021917,6]
[346073244,1734693046063,-500.0,0.00021917,6]
[346073245,1734693046072,-318.40178253,0.00021917,6]
[346073246,1734693046081,-500.0,0.00021917,6]
[346073247,1734693046090,-1012.79656135,0.00021917,5]
[346073248,1734693046100,-500.0,0.00021917,6]
[346073249,1734693046109,-500.0,0.00021917,6]
[346073250,1734693046118,-870.43,0.00021917,6]
[346073251,1734693046127,-500.0,0.00021917,6]
[346073252,1734693046137,-500.0,0.00021917,6]
[346073253,1734693046146,-500.0,0.00021917,6]
[346073254,1734693046156,-500.0,0.00021917,6]
[346073255,1734693046165,-500.0,0.00021917,6]
[346073256,1734693046176,-509.30535653,0.00021917,6]
[346073257,1734693046185,-500.0,0.00021917,6]
[346073258,1734693046194,-616.22456365,0.00021917,6]
[346073259,1734693046204,-500.0,0.00021917,6]
[346073260,1734693046213,-500.0,0.00021917,6]
[346073261,1734693046222,-500.0,0.00021917,6]
[346073262,1734693046232,-500.0,0.00021917,6]
[346073263,1734693046243,-520.73731759,0.00021917,6]
[346073264,1734693046254,-500.0,0.00021917,6]
[346073265,1734693046263,-500.0,0.00021917,6]
[346073266,1734693046272,-500.0,0.00021917,6]
[346073267,1734693046281,-534.47,0.00021917,6]
[346073268,1734693046291,-500.0,0.00021917,6]
[346073269,1734693046300,-500.0,0.00021917,6]
[346073270,1734693046310,-500.0,0.00021917,6]
[346073271,1734693046319,-502.20339153,0.00021917,6]
[346073272,1734693046329,-500.0,0.00021917,6]
[346073274,1734693046338,-500.0,0.00021917,6]
[346073276,1734693046347,-500.0,0.00021917,6]
[346073278,1734693046357,-504.67797616,0.00021917,6]
[346073280,1734693046366,-500.0,0.00021917,6]
[346073281,1734693046376,-500.0,0.00021917,6]
[346073282,1734693046386,-500.0,0.00021917,6]
[346073283,1734693046395,-500.0,0.00021917,6]
[346073284,1734693046405,-500.0,0.00021917,6]
[346073285,1734693046420,-500.0,0.00021917,6]
[346073286,1734693046430,-332.6682275,0.00021917,6]
[346073287,1734693046439,-663.44,0.00021917,6]
[346073288,1734693046449,-644.54,0.00021917,6]
[346073289,1734693046459,-500.0,0.00021917,6]
[346073290,1734693046468,-500.0,0.00021917,6]
[346073291,1734693046478,-500.0,0.00021917,6]
[346073293,1734693046489,-500.0,0.00021917,6]
[346073295,1734693046499,-500.0,0.00021917,6]
[346073297,1734693046509,-500.0,0.00021917,6]
[346073298,1734693046518,-500.0,0.00021917,6]
[346073299,1734693046531,-500.0,0.00021917,6]
[346073300,1734693046541,-500.0,0.00021917,6]
[346073301,1734693046551,-200.0,0.00021917,6]
[346073302,1734693046561,-500.0,0.00021917,6]
[346073303,1734693046570,-210.55663275,0.00021917,6]
[346073304,1734693046580,-580.4269041,0.00021917,6]
[346073305,1734693046589,-500.0,0.00021917,6]
[346073306,1734693046599,-500.0,0.00021917,6]
[346073307,1734693046608,-563.57563867,0.00021917,6]
[346073308,1734693046618,-500.0,0.00021917,6]
[346073309,1734693046627,-500.0,0.00021917,6]
[346073310,1734693046636,-500.0,0.00021917,6]
[346073311,1734693046646,-500.0,0.00021917,6]
[346073312,1734693046655,-500.0,0.00021917,6]
[346073313,1734693046665,-3028.67,0.00021917,6]
[346073314,1734693046677,-500.0,0.00021917,6]
[346073315,1734693046687,-500.0,0.00021917,6]
[346073316,1734693046697,-500.0,0.00021917,6]
[346073317,1734693046706,-662.01,0.00021917,6]
[346073318,1734693046715,-500.0,0.00021917,6]
[346073319,1734693046725,-500.0,0.00021917,6]
[346073320,1734693046734,-500.0,0.00021917,6]
[346073321,1734693046744,-500.0,0.00021917,6]
[346073322,1734693046753,-500.0,0.00021917,6]
[346073323,1734693046763,-507.07045879,0.00021917,6]
[346073324,1734693046772,-400.89,0.00021917,6]
[346073325,1734693046782,-500.0,0.00021917,6]
[346073326,1734693046791,-711.74,0.00021917,6]
[346073327,1734693046800,-500.0,0.00021917,6]
[346073328,1734693046809,-500.0,0.00021917,6]
[346073329,1734693046819,-554.08,0.00021917,6]
[346073330,1734693046828,-500.0,0.00021917,6]
[346073331,1734693046840,-645.88,0.00021917,6]
[346073332,1734693046850,-500.0,0.00021917,6]
[346073333,1734693046860,-500.0,0.00021917,6]
[346073334,1734693046869,-488.02530903,0.00021917,6]
[346073335,1734693046879,-500.0,0.00021917,6]
[346073336,1734693046888,-577.97,0.00021917,6]
[346073337,1734693046897,-500.0,0.00021917,6]
[346073338,1734693046907,-500.0,0.00021917,6]
[346073339,1734693046916,-500.0,0.00021917,6]
[346073340,1734693046930,-500.0,0.00021917,6]
[346073341,1734693046939,-1637.88,0.00021917,6]
[346073342,1734693046949,-500.0,0.00021917,6]
[346073343,1734693046959,-567.08404901,0.00021917,6]
[346073344,1734693046968,-500.0,0.00021917,6]
[346073345,1734693046978,-500.0,0.00021917,6]
[346073346,1734693046987,-778.88,0.00021917,6]
[346073347,1734693046996,-500.0,0.00021917,6]
[346073348,1734693047006,-500.0,0.00021917,6]
[346073349,1734693047015,-2108.73,0.00021917,6]
[346073350,1734693047025,-642.6,0.00021917,6]
[346073351,1734693047034,-500.0,0.00021917,6]
[346073352,1734693047043,-502.0979328,0.00021917,6]
[346073353,1734693047053,-500.0,0.00021917,6]
[346073354,1734693047063,-475.90255329,0.00021917,6]
[346073355,1734693047072,-500.0,0.00021917,6]
[346073356,1734693047081,-993.42,0.00021917,6]
[346073357,1734693047091,-506.44738267,0.00021917,6]
[346073358,1734693047100,-500.0,0.00021917,6]
[346073359,1734693047110,-500.0,0.00021917,6]
[346073360,1734693047119,-500.0,0.00021917,6]
[346073361,1734693047128,-500.0,0.00021917,6]
[346073362,1734693047138,-500.0,0.00021917,6]
[346073363,1734693047148,-500.0,0.00021917,6]
[346073364,1734693047158,-500.0,0.00021917,6]
[346073365,1734693047167,-500.0,0.00021917,6]
[346073366,1734693047180,-1347.62,0.00021917,6]
[346073367,1734693047189,-1576.34,0.00021917,6]
[346073368,1734693047199,-500.0,0.00021917,6]
[346073369,1734693047383,-500.0,0.00021917,6]
[346073370,1734693047393,-500.0,0.00021917,6]
[346073371,1734693047407,-559.19,0.00021917,6]
[346073372,1734693047417,-500.0,0.00021917,6]
[346073373,1734693047432,-500.0,0.00021917,6]
[346073374,1734693047445,-783.39,0.00021917,6]
[346073375,1734693047454,-500.0,0.00021917,6]
[346073376,1734693047464,-500.0,0.00021917,6]
[346073377,1734693047473,-500.0,0.00021917,6]
[346073378,1734693047484,-500.0,0.00021917,6]
[346073379,1734693047494,-500.0,0.00021917,6]
[346073380,1734693047503,-500.0,0.00021917,6]
[346073381,1734693047513,-507.79278057,0.00021917,6]
[346073382,1734693047522,-500.0,0.00021917,6]
[346073383,1734693047531,-500.0,0.00021917,6]
[346073384,1734693047540,-816.89,0.00021917,6]
[346073385,1734693047549,-500.0,0.00021917,6]
[346073386,1734693047559,-1486.6,0.00021917,6]
[346073387,1734693047568,-683.88,0.00021917,6]
[346073388,1734693047577,-500.0,0.00021917,6]
[346073389,1734693047586,-500.0,0.00021917,6]
[346073390,1734693047596,-2966.22,0.00021917,6]
[346073391,1734693047606,-2966.22,0.00021917,6]
[346073392,1734693047615,-2966.22,0.00021917,6]
[346073393,1734693047624,-2966.22,0.00021917,6]
[346073394,1734693047634,-2966.22,0.00021917,6]
[346073395,1734693047643,-2966.22,0.00021917,6]
[346073396,1734693047652,-2966.22,0.00021917,6]
[346073397,1734693047662,-2966.22,0.00021917,6]
[346073398,1734693047672,-2966.22,0.00021917,6]
[346073399,1734693047682,-2966.22,0.00021917,6]
[346073400,1734693047692,-500.0,0.00021917,6]
[346073401,1734693047702,-500.0,0.00021917,6]
[346073402,1734693047712,-2966.22,0.00021917,6]
[346073403,1734693047722,-500.0,0.00021917,6]
[346073404,1734693047731,-2966.22,0.00021917,6]
[346073405,1734693047740,-2966.22,0.00021917,6]
[346073406,1734693047750,-2966.22,0.00021917,6]
[346073407,1734693047759,-2966.22,0.00021917,6]
[346073408,1734693047769,-500.0,0.00021917,6]
[346073409,1734693047778,-513.88947205,0.00021917,6]
[346073410,1734693047787,-2966.22,0.00021917,6]
[346073411,1734693047797,-2966.22,0.00021917,6]
[346073412,1734693047806,-2966.22,0.00021917,6]
[346073413,1734693047816,-2966.22,0.00021917,6]
[346073414,1734693047825,-500.0,0.00021917,6]
[346073415,1734693047835,-2966.22,0.00021917,6]
[346073416,1734693047844,-2966.22,0.00021917,6]
[346073417,1734693047853,-500.0,0.00021917,6]
[346073418,1734693047863,-2966.22,0.00021917,6]
[346073419,1734693047872,-2966.22,0.00021917,6]
[346073420,1734693047882,-2966.45305678,0.00021917,6]
[346073421,1734693047891,-500.0,0.00021917,6]
[346073422,1734693047900,-3350.69,0.00021917,6]
[346073423,1734693047910,-500.0,0.00021917,6]
[346073424,1734693047919,-500.0,0.00021917,6]
[346073425,1734693047932,-500.0,0.00021917,6]
[346073426,1734693047942,-3984.39,0.00021917,6]
[346073427,1734693047951,-500.0,0.00021917,6]
[346073428,1734693047960,-500.0,0.00021917,6]
[346073429,1734693047970,-1018.39262382,0.00021917,6]
[346073430,1734693047979,-500.0,0.00021917,6]
[346073431,1734693047989,-500.0,0.00021917,6]
[346073432,1734693047999,-657.82,0.00021917,6]
[346073433,1734693048008,-502.30633396,0.00021917,6]
[346073434,1734693048018,-500.0,0.00021917,6]
[346073435,1734693048027,-500.0,0.00021917,6]
[346073436,1734693048038,-908.77,0.00021917,6]
[346073437,1734693048048,-500.0,0.00021917,6]
[346073438,1734693048057,-612.07397462,0.00021917,6]
[346073439,1734693048067,-500.0,0.00021917,6]
[346073440,1734693048077,-500.0,0.00021917,6]
[346073441,1734693048087,-500.0,0.00021917,6]
[346073442,1734693048099,-500.0,0.00021917,6]
[346073443,1734693048109,-500.0,0.00021917,6]
[346073444,1734693048118,-628.05,0.00021917,6]
[346073445,1734693048127,-183.83691903,0.00021917,6]
[346073446,1734693048137,-500.0,0.00021917,6]
[346073447,1734693048146,-532.63013126,0.00021917,6]
[346073448,1734693048156,-500.0,0.00021917,6]
[346073449,1734693048165,-579.5,0.00021917,6]
[346073450,1734693048178,-508.71468515,0.00021917,6]
[346073451,1734693048188,-500.0,0.00021917,6]
[346073452,1734693048197,-534.85030455,0.00021917,6]
[346073453,1734693048207,-500.0,0.00021917,6]
[346073454,1734693048216,-750.31,0.00021917,6]
[346073455,1734693048226,-519.61,0.00021917,6]
[346073456,1734693048235,-500.0,0.00021917,6]
[346073457,1734693048245,-2341.45,0.00021917,6]
[346073458,1734693048255,-703.35,0.00021917,6]
[346073459,1734693048264,-500.0,0.00021917,6]
[346073460,1734693048274,-846.66,0.00021917,6]
[346073461,1734693048284,-500.0,0.00021917,6]
[346073462,1734693048293,-502.23384987,0.00021917,6]
[346073463,1734693048303,-500.0,0.00021917,6]
[346073464,1734693048312,-558.24,0.00021917,6]
[346073465,1734693048322,-503.91824269,0.00021917,6]
[346073466,1734693048331,-500.0,0.00021917,6]
[346073467,1734693048340,-784.95,0.00021917,6]
[346073468,1734693048350,-500.0,0.00021917,6]
[346073469,1734693048360,-500.0,0.00021917,6]
[346073470,1734693048370,-929.35,0.00021917,6]
[346073471,1734693048379,-500.0,0.00021917,6]
[346073472,1734693048389,-502.58250751,0.00021917,6]
[346073473,1734693048399,-500.0,0.00021917,6]
[346073474,1734693048411,-500.0,0.00021917,6]
[346073475,1734693048429,-2078.12,0.00021917,6]
[346073476,1734693048439,-500.0,0.00021917,6]
[346073477,1734693048451,-507.02354621,0.00021917,6]
[346073478,1734693048460,-512.72919509,0.00021917,6]
[346073479,1734693048470,-500.0,0.00021917,6]
[346073480,1734693048479,-500.0,0.00021917,6]
[346073481,1734693048492,-2253.32,0.00021917,6]
[346073482,1734693048502,-753.77,0.00021917,6]
[346073483,1734693048511,-928.58,0.00021917,6]
[346073484,1734693048521,-1958.52,0.00021917,6]
[346073485,1734693048530,-500.0,0.00021917,6]
[346073486,1734693048540,-500.0,0.00021917,6]
[346073487,1734693048549,-500.0,0.00021917,6]
[346073488,1734693048558,-503.17743049,0.00021917,6]
[346073489,1734693048567,-508.89144588,0.00021917,6]
[346073490,1734693048577,-2612.84,0.00021917,6]
[346073491,1734693048586,-816.69,0.00021917,6]
[346073492,1734693048595,-500.0,0.00021917,6]
[346073493,1734693048604,-500.0,0.00021917,6]
[346073494,1734693048613,-504.28700701,0.00021917,6]
[346073495,1734693048622,-500.0,0.00021917,6]
[346073496,1734693048632,-500.0,0.00021917,6]
[346073497,1734693048641,-942.58,0.00021917,6]
[346073498,1734693048651,-998.57,0.00021917,6]
[346073499,1734693048659,-500.0,0.00021917,6]
[346073500,1734693048668,-500.0,0.00021917,6]
[346073501,1734693048681,-3375.68,0.00021917,6]
[346073502,1734693048690,-500.0,0.00021917,6]
[346073503,1734693048700,-500.0,0.00021917,6]
[346073504,1734693048709,-500.0,0.00021917,6]
[346073505,1734693048719,-500.0,0.00021917,6]
[346073506,1734693048729,-591.11,0.00021917,6]
[346073507,1734693048739,-3019.62,0.00021917,6]
[346073508,1734693048748,-829.78,0.00021917,6]
[346073509,1734693048759,-500.0,0.00021917,6]
[346073510,1734693048769,-503.07592958,0.00021917,6]
[346073511,1734693048778,-2878.24,0.00021917,6]
[346073512,1734693048788,-500.0,0.00021917,6]
[346073513,1734693048797,-500.0,0.00021917,6]
[346073514,1734693048807,-870.11,0.00021917,6]
[346073515,1734693048816,-500.0,0.00021917,6]
[346073516,1734693048825,-241.01151684,0.00021917,6]
[346073517,1734693048835,-503.76599879,0.00021917,6]
[346073518,1734693048844,-500.0,0.00021917,6]
[346073519,1734693048854,-500.0,0.00021917,6]
[346073520,1734693048864,-500.0,0.00021917,6]
[346073521,1734693048874,-2093.85,0.00021917,6]
[346073522,1734693048884,-561.5,0.00021917,6]
[346073523,1734693048894,-1000.0,0.00021917,6]
[346073524,1734693048903,-500.0,0.00021917,6]
[346073525,1734693048913,-575.58,0.00021917,6]
[346073526,1734693048923,-500.0,0.00021917,6]
[346073527,1734693048932,-500.0,0.00021917,6]
[346073528,1734693048942,-500.0,0.00021917,6]
[346073529,1734693048952,-606.38,0.00021917,6]
[346073530,1734693048962,-3117.2,0.00021917,6]
[346073531,1734693048972,-3117.2,0.00021917,6]
[346073532,1734693048982,-3117.2,0.00021917,6]
[346073533,1734693048991,-500.0,0.00021917,6]
[346073534,1734693049000,-3117.2,0.00021917,6]
[346073535,1734693049010,-504.27093503,0.00021917,6]
[346073536,1734693049019,-3117.2,0.00021917,6]
[346073537,1734693049029,-3117.2,0.00021917,6]
[346073538,1734693049039,-3117.2,0.00021917,6]
[346073539,1734693049048,-3117.2,0.00021917,6]
[346073540,1734693049058,-3117.2,0.00021917,6]
[346073541,1734693049067,-3117.2,0.00021917,6]
[346073542,1734693049077,-3117.2,0.00021917,6]
[346073543,1734693049087,-3117.2,0.00021917,6]
[346073544,1734693049097,-500.0,0.00021917,6]
[346073545,1734693049107,-3117.2,0.00021917,6]
[346073546,1734693049117,-3117.2,0.00021917,6]
[346073547,1734693049127,-3117.2,0.00021917,6]
[346073548,1734693049137,-3117.2,0.00021917,6]
[346073549,1734693049147,-3117.2,0.00021917,6]
[346073550,1734693049156,-500.0,0.00021917,6]
[346073551,1734693049165,-3117.2,0.00021917,6]
[346073552,1734693049177,-500.0,0.00021917,6]
[346073553,1734693049187,-3117.2,0.00021917,6]
[346073554,1734693049197,-1051.37,0.00021917,6]
[346073555,1734693049206,-3117.2,0.00021917,6]
[346073556,1734693049216,-3117.2,0.00021917,6]
[346073557,1734693049226,-3117.2,0.00021917,6]
[346073558,1734693049236,-3117.2,0.00021917,6]
[346073559,1734693049245,-3117.40729217,0.00021917,6]
[346073560,1734693049255,-500.0,0.00021917,6]
[346073561,1734693049265,-500.0,0.00021917,6]
[346073562,1734693049275,-605.01,0.00021917,6]
[346073563,1734693049285,-500.0,0.00021917,6]
[346073564,1734693049295,-500.0,0.00021917,6]
[346073565,1734693049304,-500.0,0.00021917,6]
[346073566,1734693049314,-1895.2,0.00021917,6]
[346073567,1734693049324,-500.0,0.00021917,6]
[346073568,1734693049333,-1304.77,0.00021917,6]
[346073569,1734693049343,-978.44,0.00021917,6]
[346073570,1734693049352,-500.0,0.00021917,6]
[346073571,1734693049362,-381.03526049,0.00021917,6]
[346073572,1734693049371,-500.0,0.00021917,6]
[346073573,1734693049380,-500.0,0.00021917,6]
[346073574,1734693049390,-500.0,0.00021917,6]
[346073575,1734693049400,-823.06,0.00021917,6]
[346073576,1734693049411,-1110.35,0.00021917,6]
[346073577,1734693049421,-15620.31,0.00021917,6]
[346073578,1734693049432,-3107.96,0.00021917,6]
[346073579,1734693049443,-500.0,0.00021917,6]
[346073580,1734693049453,-502.54696187,0.00021917,6]
[346073581,1734693049463,-1979.3,0.00021917,6]
[346073582,1734693049473,-500.0,0.00021917,6]
[346073583,1734693049483,-504.51284964,0.00021917,6]
[346073584,1734693049494,-515.99479645,0.00021917,6]
[346073585,1734693049504,-500.0,0.00021917,2]
[346073586,1734693049513,-1698.36,0.00021917,6]
[346073587,1734693049523,-500.0,0.00021917,6]
[346073588,1734693049533,-309.66456514,0.00021917,6]
[346073589,1734693049543,-1217.27,0.00021917,6]
[346073590,1734693049552,-500.0,0.00021917,6]
[346073591,1734693049562,-1129.89,0.00021917,6]
[346073592,1734693049572,-500.0,0.00021917,6]
[346073593,1734693049582,-502.30225359,0.00021917,6]
[346073594,1734693049591,-500.0,0.00021917,6]
[346073595,1734693049601,-500.0,0.00021917,6]
[346073596,1734693049611,-500.0,0.00021917,6]
[346073597,1734693049620,-500.0,0.00021917,6]
[346073598,1734693049631,-3084.04,0.00021917,6]
[346073599,1734693049641,-611.22,0.00021917,6]
[346073600,1734693049650,-500.0,0.00021917,6]
[346073601,1734693049660,-500.0,0.00021917,6]
[346073602,1734693049669,-500.0,0.00021917,6]
[346073603,1734693049685,-514.9,0.00021917,6]
[346073604,1734693049695,-749.85,0.00021917,6]
[346073605,1734693049705,-1709.27,0.00021917,6]
[346073606,1734693049715,-500.0,0.00021917,6]
[346073607,1734693049725,-500.0,0.00021917,6]
[346073608,1734693049735,-631.5,0.00021917,6]
[346073609,1734693049744,-3926.23,0.00021917,6]
[346073610,1734693049754,-500.0,0.00021917,6]
[346073611,1734693049763,-500.0,0.00021917,6]
[346073612,1734693049772,-500.0,0.00021917,6]
[346073613,1734693049782,-8032.25,0.00021917,6]
[346073614,1734693049792,-500.0,0.00021917,6]
[346073615,1734693049802,-500.0,0.00021917,6]
[346073616,1734693049811,-507.62342226,0.00021917,6]
[346073617,1734693049821,-957.95,0.00021917,6]
[346073618,1734693049830,-500.0,0.00021917,6]
[346073619,1734693049840,-580.83099848,0.00021917,6]
[346073620,1734693049850,-647.04,0.00021917,6]
[346073621,1734693049859,-500.0,0.00021917,6]
[346073622,1734693049868,-500.0,0.00021917,6]
[346073623,1734693049879,-500.0,0.00021917,6]
[346073624,1734693049888,-500.0,0.00021917,6]
[346073625,1734693049898,-880.3,0.00021917,6]
[346073626,1734693049907,-828.99,0.00021917,6]
[346073627,1734693049916,-500.0,0.00021917,6]
[346073628,1734693049926,-500.0,0.00021917,6]
[346073629,1734693049935,-500.0,0.00021917,6]
[346073630,1734693049945,-500.0,0.00021917,6]
[346073631,1734693049954,-1556.66,0.00021917,2]
[346073632,1734693049964,-500.0,0.00021917,6]
[346073633,1734693049973,-500.0,0.00021917,6]
[346073634,1734693049983,-772.83,0.00021917,6]
[346073635,1734693049992,-244.26669575,0.00021917,6]
[346073636,1734693050002,-933.46,0.00021917,6]
[346073637,1734693050011,-624.52930219,0.00021917,6]
[346073638,1734693050021,-500.0,0.00021917,6]
[346073639,1734693050030,-500.0,0.00021917,6]
[346073640,1734693050040,-500.0,0.00021917,6]
[346073641,1734693050050,-727.74,0.00021917,6]
[346073642,1734693050059,-500.0,0.00021917,6]
[346073643,1734693050069,-503.04174113,0.00021917,6]
[346073644,1734693050079,-512.38521138,0.00021917,6]
[346073645,1734693050088,-1507.13,0.00021917,6]
[346073646,1734693050097,-500.0,0.00021917,6]
[346073647,1734693050107,-628.91,0.00021917,6]
[346073648,1734693050117,-165.05021587,0.00021917,6]
[346073649,1734693050127,-500.0,0.00021917,6]
[346073650,1734693050136,-500.0,0.00021917,6]
[346073651,1734693050147,-1026.99,0.00021917,6]
[346073652,1734693050157,-20507.92,0.00021917,6]
[346073653,1734693050320,-1914.41,0.00021917,6]
[346073654,1734693050331,-500.0,0.00021917,6]
[346073655,1734693050341,-500.0,0.00021917,6]
[346073656,1734693050351,-500.0,0.00021917,6]
[346073657,1734693050362,-945.69,0.00021917,6]
[346073658,1734693050371,-769.8,0.00021917,6]
[346073659,1734693050382,-31690.43,0.00021917,6]
[346073660,1734693050393,-529.17603155,0.00021917,6]
[346073661,1734693050404,-500.0,0.00021917,6]
[346073662,1734693050416,-10891.37,0.00021917,6]
[346073663,1734693050429,-500.0,0.00021917,6]
[346073664,1734693050438,-500.0,0.00021917,6]
[346073665,1734693050449,-1881.92,0.00021917,6]
[346073666,1734693050459,-551.82,0.00021917,6]
[346073667,1734693050468,-500.0,0.00021917,6]
[346073668,1734693050478,-741.52,0.00021917,6]
[346073669,1734693050488,-500.0,0.00021917,6]
[346073670,1734693050498,-739.27,0.00021917,6]
[346073671,1734693050508,-500.0,0.00021917,6]
[346073672,1734693050517,-599.48,0.00021917,6]
[346073673,1734693050527,-674.12,0.00021917,6]
[346073674,1734693050537,-500.0,0.00021917,6]
[346073675,1734693050547,-500.0,0.00021917,6]
[346073676,1734693050556,-1525.74,0.00021917,6]
[346073677,1734693050565,-82254.19,0.00021917,6]
[346073678,1734693050575,-500.0,0.00021917,6]
[346073679,1734693050584,-5572.46,0.00021917,6]
[346073680,1734693050594,-500.0,0.00021917,6]
[346073681,1734693050604,-500.0,0.00021917,6]
[346073682,1734693050614,-500.0,0.00021917,6]
[346073683,1734693050623,-500.0,0.00021917,6]
[346073684,1734693050633,-500.0,0.00021917,6]
[346073685,1734693050643,-209.39708486,0.00021917,6]
[346073686,1734693050652,-500.0,0.00021917,6]
[346073687,1734693050662,-730.97,0.00021917,6]
[346073688,1734693050670,-27791.49,0.00021917,6]
[346073689,1734693050681,-623.84,0.00021917,6]
[346073690,1734693050691,-27791.49,0.00021917,6]
[346073691,1734693050700,-500.0,0.00021917,6]
[346073692,1734693050710,-414.68898446,0.00021917,6]
[346073693,1734693050719,-27791.49,0.00021917,6]
[346073694,1734693050729,-27791.49,0.00021917,6]
[346073695,1734693050739,-27791.49,0.00021917,6]
[346073696,1734693050748,-27791.49,0.00021917,6]
[346073697,1734693050758,-27791.49,0.00021917,6]
[346073698,1734693050767,-27791.49,0.00021917,6]
[346073699,1734693050776,-12564.99,0.00021917,6]
[346073700,1734693050786,-27791.49,0.00021917,6]
[346073701,1734693050795,-500.0,0.00021917,6]
[346073702,1734693050805,-27791.49,0.00021917,6]
[346073703,1734693050815,-27791.49,0.00021917,6]
[346073704,1734693050824,-27791.49,0.00021917,6]
[346073705,1734693050833,-27791.49,0.00021917,6]
[346073706,1734693050843,-27791.49,0.00021917,6]
[346073707,1734693050852,-27791.49,0.00021917,6]
[346073708,1734693050862,-27791.49,0.00021917,6]
[346073709,1734693050871,-409.7477216,0.00021917,6]
[346073710,1734693050881,-500.0,0.00021917,6]
[346073711,1734693050891,-27791.49,0.00021917,6]
[346073712,1734693050900,-27791.49,0.00021917,6]
[346073713,1734693050909,-27791.49,0.00021917,6]
[346073714,1734693050919,-27791.49,0.00021917,6]
[346073715,1734693050929,-500.0,0.00021917,6]
[346073716,1734693050939,-734.96,0.00021917,6]
[346073717,1734693050948,-27791.49,0.00021917,6]
[346073718,1734693050957,-27791.49,0.00021917,6]
[346073719,1734693050967,-500.0,0.00021917,6]
[346073720,1734693050976,-27791.49,0.00021917,6]
[346073721,1734693050985,-27791.58262087,0.00021917,6]
[346073722,1734693050995,-5780.94,0.00021917,6]
[346073723,1734693051005,-774.73,0.00021917,6]
[346073724,1734693051015,-502.82085765,0.00021917,6]
[346073725,1734693051024,-836.63,0.00021917,6]
[346073726,1734693051033,-500.0,0.00021917,6]
[346073727,1734693051042,-500.0,0.00021917,6]
[346073728,1734693051051,-500.0,0.00021917,6]
[346073729,1734693051061,-527.3,0.00021917,6]
[346073730,1734693051071,-2098.69,0.00021917,6]
[346073731,1734693051080,-5039.08,0.00021917,6]
[346073732,1734693051090,-265.47913517,0.00021917,6]
[346073733,1734693051099,-500.0,0.00021917,6]
[346073734,1734693051109,-500.0,0.00021917,6]
[346073735,1734693051119,-502.42085056,0.00021917,6]
[346073736,1734693051128,-500.0,0.00021917,6]
[346073737,1734693051137,-1080.46,0.00021917,6]
[346073738,1734693051146,-648.6,0.00021917,6]
[346073739,1734693051156,-603.16,0.00021917,6]
[346073740,1734693051165,-500.0,0.00021917,6]
[346073741,1734693051177,-500.0,0.00021917,6]